[Event "Mitropa Cup Women 2022"]
[Site "Corte"]
[Date "2022.05.08"]
[Round "9.7"]
[White "Janzelj, Lara"]
[Black "Leconte, Maria"]
[Result "1-0"]
[ECO "A25"]
[WhiteElo "2191"]
[BlackElo "2211"]
[Annotator "TA"]
[PlyCount "125"]
[EventDate "2022.04.30"]
[EventType "team-tourn"]
[EventCountry "FRA"]
[SourceTitle "playchess.com"]
[Source "ChessBase"]
[SourceQuality "1"]
[WhiteTeam "Slovenia"]
[BlackTeam "France"]
[WhiteTeamCountry "SLO"]
[BlackTeamCountry "FRA"]
[TimeControl "40/5400+30:1800+30"]

{[%evp 9,125,34,34,40,34,-13,0,-12,-27,-20,0,-5,-8,-33,-9,-25,0,-58,-62,-90,-45,-48,-18,-53,-8,-6,0,-58,-19,-40,-20,-22,-30,-22,-22,-28,-16,-39,-15,-6,0,-13,-15,-23,0,0,0,0,-3,-63,-23,-30,-6,0,12,13,6,19,116,122,200,195,195,176,166,182,254,253,252,243,257,243,247,221,251,242,287,261,618,651,650,639,606,589,672,654,889,764,783,780,866,862,953,942,870,793,1141,1123,2399,2149,5612,1462,29978,29979,29979,29980,29980,29981,29981,29959,6390,6452,5903,5903,4682,1888,1482,1233]} 1. c4 {[%emt 0:00:03]} e5 {[%emt 0:00:27][%cal Be7e5,Be5e4][%mdl 32]} 2. Nc3 {[%emt 0:00:22]} Nc6 {[%emt 0:00:09]} 3. g3 {[%emt 0:00:06]} f5 {[%emt 0:00:30]} 4. Nf3 {[%emt 0:01:16]} Nf6 {[%emt 0:02:49]} 5. d4 {[%emt 0:01:14]} e4 {[%emt 0:01:30]} 6. Nh4 {[%emt 0:02:10] A27: English Opening: Three Knights Variation.} d6 {[%emt 0:05:18]} 7. Bh3 {[%emt 0:02:17] 7.Bg5 deserves study.} (7. Ng2 $14 {was preferrable.}) 7... g6 $11 {[%emt 0:06:22]} 8. O-O {[%emt 0:01:14] The position is equal.} Bg7 {[%emt 0:00:52]} 9. f3 {[%emt 0:09:39]} exf3 {[%emt 0:08:01]} 10. Nxf3 {[%emt 0:00:09]} O-O {[%emt 0:00:35] [#]} 11. e3 $146 {[%emt 0:03:18]} ({Predecessor:} 11. Bg5 h6 12. Bxf6 Bxf6 13. Qd3 Bd7 14. e4 fxe4 15. Qxe4 Bxh3 16. Qxg6+ Bg7 17. Rf2 Nxd4 18. Nxd4 Rxf2 19. Kxf2 {1-0 (44) Prithu,G (2472)-Duquesnoy,J (2172) Europe Echecs INT 2021}) 11... Bd7 {[%emt 0:23:39]} 12. Bg2 {[%emt 0:02:08]} a6 {[%emt 0:04:43]} 13. a3 {[%emt 0:04:25]} (13. Bd2 $11) 13... Na5 $15 {[%emt 0:06:36]} 14. Nd2 {[%emt 0:03:50]} Ng4 {[%emt 0:05:33]} 15. Nb3 {[%emt 0:00:29]} Nc6 {[%emt 0:01:19]} 16. Qd3 {[%emt 0:02:25]} Kh8 {[%emt 0:01:17]} 17. Bd2 {[%emt 0:03:45]} Rb8 {[%emt 0:00:19]} 18. Nc1 {[%emt 0:06:19]} ({White should play} 18. Rae1 $11) 18... Re8 {[%emt 0:01:41][%cal Ob7b5]} 19. N1e2 {[%emt 0:00:48]} b5 {[%emt 0:04:17]} 20. cxb5 {[%emt 0:00:51]} axb5 {[%emt 0:00:09]} 21. b4 {[%emt 0:00:25]} Ne7 {[%emt 0:06:08][%cal Oc7c5]} 22. Nf4 {[%emt 0:03:11]} c6 {[%emt 0:01:24]} 23. Rfc1 {[%emt 0:01:41]} Nc8 {[%emt 0:03:00]} 24. a4 {[%emt 0:02:08]} bxa4 {[%emt 0:00:59]} 25. Nxa4 {[%emt 0:00:22]} Ne7 {[%emt 0:08:17]} 26. Rab1 {[%emt 0:09:48]} Nf6 {[%emt 0:02:24]} (26... Rf8 $5 {[%cal Rd8e8]}) 27. Nc3 {[%emt 0:02:41]} g5 {[%emt 0:01:07]} 28. Nh3 {[%emt 0:01:12]} h6 {[%emt 0:00:28]} 29. Rf1 {[%emt 0:03:15]} (29. Nf2 $11) 29... Qb6 {[%emt 0:01:57]} 30. Nf2 {[%emt 0:03:04]} Ned5 {[%emt 0:00:43]} 31. Nxd5 {[%emt 0:00:44]} Nxd5 {[%emt 0:00:16]} 32. b5 {[%emt 0:00:50] [#] And now Rfc1 would win.} Be6 {[%emt 0:00:25][%cal Rc6b5]} 33. g4 {[%emt 0:04:53]} f4 (33... fxg4 $11 34. Qg6 Bg8 35. bxc6 (35. Nxg4 Bh7 $11) (35. Qxd6 Nxe3 36. Bxe3 Rxe3 $17) 35... Qxc6 36. Rxb8 (36. Nxg4 Bh7 $11) 36... Rxb8) 34. bxc6 $16 {[%emt 0:02:23] White now steadily converts the win.} Qc7 {[%emt 0:02:10]} (34... Qxc6 $16 35. e4 Ne3) 35. e4 {[%emt 0:00:30]} Ne3 {[%emt 0:00:08]} 36. Bxe3 {[%emt 0:00:52]} fxe3 {[%emt 0:00:08]} 37. Qxe3 {[%emt 0:00:28]} Bc4 {[%emt 0:01:41]} (37... Qa7 $142) 38. Rxb8 $18 {[%emt 0:00:55]} Qxb8 {[%emt 0:00:29]} 39. Rc1 {[%emt 0:01:44]} d5 {[%emt 0:00:41]} 40. e5 {[%emt 0:07:54] Strongly threatening Bf1.} Qb6 {[%emt 0:00:18][%cal Oe8e5]} 41. Nd1 {[%emt 0:31:39][%cal Bf2d1,Bd1e3,Be3d5,Bd5e7,Be7f5][%mdl 32]} Qxc6 {[%emt 0:06:53]} 42. Qc3 {[%emt 0:00:00]} ({Don't play} 42. Nb2 Qb6 $18) 42... Rb8 {[%emt 0:12:04]} 43. Ne3 {[%emt 0:00:00][%cal Og2d5] Bxd5! is the strong threat.} (43. Bxd5 Qxd5 44. Ne3 (44. Qxc4 Qxc4 45. Rxc4 Rb1 $11) 44... Qf3 45. Nxc4 Qxg4+ 46. Kh1 Qe4+ 47. Kg1 Rd8 $11) 43... Rc8 $2 {[%emt 0:03:53] [#]} (43... Qg6 44. Nxc4 (44. Bxd5 Bxd5 45. Nxd5 Qe4 $18) 44... dxc4 45. Qxc4 Qb6) 44. Bxd5 $1 {[%emt 0:00:00][%mdl 512]} Bxd5 {[%emt 0:02:38]} 45. Nxd5 {[%emt 0:00:00][%mdl 64] Pin} Qxc3 {[%emt 0:00:19]} 46. Rxc3 {[%emt 0:00:00][%mdl 4096] Endgame KRB-KRN} Ra8 {[%emt 0:02:05]} 47. Ne7 {[%emt 0:00:00]} Ra4 {[%emt 0:05:06]} 48. Rd3 {[%emt 0:00:00]} Kh7 {[%emt 0:00:58]} 49. h3 {[%emt 0:00:00][%cal Bh2h3,Bh3g4][%mdl 32]} Bf8 {[%emt 0:00:22]} 50. Nf5 {[%emt 0:00:00]} Kg6 {[%emt 0:00:20]} 51. Rc3 {[%emt 0:00:00]} Ra6 {[%emt 0:00:29]} 52. Kg2 {[%emt 0:00:00]} h5 {[%emt 0:00:05]} 53. Kf3 {[%emt 0:00:00]} hxg4+ {[%emt 0:00:09]} 54. hxg4 {[%emt 0:00:00]} Kf7 {[%emt 0:00:54]} 55. Rc7+ {[%emt 0:00:00]} Ke6 {[%emt 0:00:21]} 56. Ke4 {[%emt 0:00:00][%csl Ge4][%cal Rd4d5]} Ra4 {[%emt 0:00:16]} 57. Rb7 {[%emt 0:00:00]} Rc4 {[%emt 0:00:54]} 58. Ra7 {[%emt 0:00:00]} Rb4 {[%emt 0:00:10]} 59. Ra8 {[%emt 0:00:00]} Bc5 {[%emt 0:01:16]} 60. Rc8 {White is clearly winning.} Bb6 {[%emt 0:00:38]} 61. Rc6+ {[%emt 0:00:00]} Kd7 62. Rg6 {[%emt 0:00:00] Threatening mate with e6+.} Bd8 {[%emt 0:02:02]} 63. e6+ {[%emt 0:00:00] Weighted Error Value: White=0.13 (very precise) /Black=0.32} 1-0

[Event "Mitropa Cup Women 2022"]
[Site "Corte"]
[Date "2022.05.08"]
[Round "9.7"]
[White "Butenandt, Svenja"]
[Black "Mayrhuber, Nikola"]
[Result "0-1"]
[ECO "E46"]
[WhiteElo "2086"]
[BlackElo "2086"]
[Annotator "TA"]
[PlyCount "67"]
[EventDate "2022.04.30"]
[EventType "team-tourn"]
[EventCountry "FRA"]
[SourceTitle "playchess.com"]
[Source "ChessBase"]
[SourceQuality "1"]
[WhiteTeam "Germany"]
[BlackTeam "Austria"]
[WhiteTeamCountry "GER"]
[BlackTeamCountry "AUT"]
[TimeControl "40/5400+30:1800+30"]

{[%evp 13,67,0,0,0,0,0,0,0,0,0,-8,-10,0,0,0,6,0,0,20,13,45,36,50,14,82,79,79,75,78,74,131,72,255,84,65,74,239,243,241,239,237,236,321,321,525,500,523,522,541,503,754,747,970,451,727,197]} 1. d4 {[%emt 0:00:01]} Nf6 {[%emt 0:00:05]} 2. c4 {[%emt 0:00:04]} e6 {[%emt 0:00:03]} 3. Nc3 {[%emt 0:00:03]} Bb4 {[%emt 0:00:05]} 4. e3 {[%emt 0:00:03]} O-O {[%emt 0:00:06]} 5. Nge2 {[%emt 0:00:02]} Re8 {[%emt 0:00:05]} 6. a3 {[%emt 0:00:09]} Bf8 {[%emt 0:00:05]} 7. Ng3 {[%emt 0:04:25]} d5 {[%emt 0:00:14]} 8. Be2 {[%emt 0:01:59] E46: Nimzo-Indian: Rubinstein: 4 e3 0-0 5 Ne2 without early Bd3.} b6 {[%emt 0:01:05]} 9. cxd5 {[%emt 0:02:10]} exd5 {[%emt 0:00:12]} 10. O-O {[%emt 0:00:28] The position is equal.} Ba6 {[%emt 0:08:41]} 11. Bxa6 {[%emt 0:04:54]} Nxa6 {[%emt 0:03:05]} 12. b4 {[%emt 0:00:44]} c5 {[%emt 0:10:33] [#]} 13. bxc5 $146 {[%emt 0:09:50]} ({Predecessor:} 13. dxc5 bxc5 14. b5 Nc7 15. a4 d4 16. exd4 cxd4 17. Nce2 Ne6 18. Qd3 Qd5 19. Rd1 {0-1 (41) Goncharov,V (2077)-Samunenkov,I (2372) Chess.com INT 2022}) 13... bxc5 {[%emt 0:00:07]} 14. dxc5 {[%emt 0:02:40]} Nxc5 {[%emt 0:00:09]} 15. a4 {[%emt 0:13:11]} Re5 {[%emt 0:15:44]} 16. Bb2 {[%emt 0:03:11]} Rg5 {[%emt 0:07:15]} 17. Qf3 {[%emt 0:13:29]} Rb8 {[%emt 0:09:08]} 18. Ba3 {[%emt 0:13:08]} Rb3 {[%emt 0:10:08]} (18... d4 $11 {keeps the balance.} 19. Nb5 dxe3) 19. Nb5 $16 {[%emt 0:04:24]} Rg4 {[%emt 0:08:54]} 20. Bxc5 {[%emt 0:13:39]} Bxc5 {[%emt 0:00:05] [#]} 21. Nh5 $1 {[%emt 0:00:16] aiming for Nxf6+.} Rg6 {[%emt 0:06:50]} (21... Rbb4 $142) 22. Rad1 {[%emt 0:01:41]} (22. Rac1 $142 Bf8 23. Nf4 (23. Nxa7 Nxh5 24. Qxh5 Qa8 $11)) 22... d4 $2 {[%emt 0:07:32]} (22... Rg5 $16 23. Nxf6+ Qxf6 24. Qxf6 gxf6) 23. Nxf6+ $2 {[%emt 0:01:13]} ({Don't take} 23. Nxd4 $6 Bxd4 24. Rxd4 Qe8 $16) (23. Nf4 $18 {has better winning chances.}) 23... Rxf6 {[%emt 0:01:17]} 24. Qh5 {[%emt 0:00:14]} Rxb5 {[%emt 0:04:02]} 25. axb5 $18 {[%emt 0:00:15]} Qb6 {[%emt 0:00:03]} 26. Rc1 {[%emt 0:03:02]} Bf8 {[%emt 0:00:33]} 27. exd4 {[%emt 0:01:05]} Qxd4 {[%emt 0:00:49]} 28. Rc8 {[%emt 0:02:56] Hoping for Qd1.} Rh6 $2 {[%emt 0:03:21]} (28... g6 29. Qh6 Qd6) 29. Qd1 {[%emt 0:00:42] White is clearly winning.} Qe5 {[%emt 0:03:07][%csl Gh6][%cal Re5h2] [#]} 30. h3 {[%emt 0:00:46]} Rd6 {[%emt 0:01:08] Against Qd8} 31. Qa4 {[%emt 0:03:06]} Qf5 {[%emt 0:00:28]} 32. Rfc1 {[%emt 0:01:17] b6 is the strong threat.} Rd7 {[%emt 0:00:55]} 33. Qg4 {[%emt 0:01:17]} (33. b6 $142 axb6 34. Qa8) 33... Qxb5 {[%emt 0:00:30]} (33... Qxg4 $142 34. hxg4 g6) 34. R1c2 $2 {[%emt 0:00:00][%mdl 32768] Weighted Error Value: White=0.29 (precise) /Black=0.59. Loss on time!?} (34. Re1 h5 35. Qf4) 0-1

[Event "Mitropa Cup Women 2022"]
[Site "Corte"]
[Date "2022.05.08"]
[Round "9.8"]
[White "Froewis, Annika"]
[Black "Buchholz, Maja"]
[Result "0-1"]
[ECO "A45"]
[WhiteElo "2090"]
[BlackElo "1945"]
[Annotator "TA"]
[PlyCount "74"]
[EventDate "2022.04.30"]
[EventType "team-tourn"]
[EventCountry "FRA"]
[SourceTitle "playchess.com"]
[Source "ChessBase"]
[SourceQuality "1"]
[WhiteTeam "Austria"]
[BlackTeam "Germany"]
[WhiteTeamCountry "AUT"]
[BlackTeamCountry "GER"]
[TimeControl "40/5400+30:1800+30"]

{[%evp 9,74,-7,0,0,0,0,13,0,8,-10,36,0,0,-51,-45,-46,9,-100,31,-57,-31,-54,-57,-87,-69,-70,35,-62,-67,-96,153,152,135,143,351,0,0,0,0,0,0,0,0,0,0,0,0,0,0,0,0,0,0,-912,-737,-1389,-1230,-29970,-29971,-29966,-29964,-29988,-29989,-29989,-29990,-29990,-29974]} 1. d4 {[%emt 0:00:03]} Nf6 {[%emt 0:00:13]} 2. Bf4 {[%emt 0:00:06]} g6 {[%emt 0:00:11]} 3. Nc3 {[%emt 0:00:18]} d5 {[%emt 0:00:10]} 4. e3 {[%emt 0:00:16]} Bg7 {[%emt 0:00:11]} 5. h4 {[%emt 0:00:14]} h5 {[%emt 0:00:15]} 6. Nf3 {[%emt 0:00:24] A45: Trompowsky Attack.} O-O {[%emt 0:00:32]} 7. Ne5 {[%emt 0:02:08]} c5 {[%emt 0:01:35]} 8. Qd2 {[%emt 0:02:20] The position is equal.} Nc6 {[%emt 0:01:35]} 9. O-O-O {[%emt 0:01:20] [#]} c4 $146 {[%emt 0:04:38]} (9... Qa5 $11 {is superior.}) ({Predecessor:} 9... Bf5 10. f3 Nb4 11. Nd3 Rc8 12. Kb1 b5 13. dxc5 Bxd3 14. Bxd3 Rxc5 15. Be5 Nc6 16. Bxf6 Bxf6 {0-1 (38) Maurizzi,M (2433)-Salem,A (2682) Chess.com INT 2020}) 10. Nxc6 {[%emt 0:13:55]} bxc6 {[%emt 0:00:14]} 11. Na4 {[%emt 0:00:32]} (11. f3 $11) 11... Nd7 {[%emt 0:18:34]} 12. e4 {[%emt 0:12:03]} Re8 {[%emt 0:21:59]} (12... Nb6 $15 13. Nc3 dxe4) 13. f3 {[%emt 0:08:29]} (13. Nc3 $11 {remains equal.}) 13... Nb6 {[%emt 0:12:47]} ({Better is} 13... e5 $17 14. dxe5 Nxe5) 14. Nc5 {[%emt 0:02:25]} (14. Nc3 $1 $14) 14... e5 $15 {[%emt 0:00:50]} 15. Bg5 {[%emt 0:06:28]} Qd6 {[%emt 0:02:14]} 16. c3 {[%emt 0:00:53]} f5 {[%emt 0:06:17]} 17. exf5 {[%emt 0:19:55]} gxf5 {[%emt 0:04:46]} ({Black should play} 17... Bxf5 $15 18. Bh6 Bf6) 18. Kb1 {[%emt 0:04:05]} (18. Re1 $14) 18... Rb8 {[%emt 0:04:09] aiming for ...f4.} 19. Ka1 {[%emt 0:00:30]} Nd7 $2 {[%emt 0:01:06]} (19... f4 $17 {stays on course.}) 20. Nxd7 $1 $16 {[%emt 0:00:57]} Bxd7 {[%emt 0:00:12]} 21. dxe5 {[%emt 0:00:44]} Qxe5 {[%emt 0:00:43]} (21... Bxe5 $16 {is a better defense.} 22. Bxc4 Qf8) 22. Bxc4 $2 {[%emt 0:07:10]} dxc4 $11 {[%emt 0:04:08]} 23. Qxd7 {[%emt 0:00:57]} Rxb2 $1 {[%emt 0:00:21][%cal Ob2b1] ( -> ...Rb1+!)} 24. Qxe8+ $1 {[%emt 0:01:59]} (24. Qxc6 {[#] leads to mate.} Rb1+ $3 {[%mdl 512]} 25. Kxb1 Rb8+) 24... Qxe8 {[%emt 0:00:43]} 25. Kxb2 {[%emt 0:00:36] Threatens to win with Rd8.} Qe5 {[%emt 0:02:14]} 26. Rd8+ {[%emt 0:04:46]} Kh7 {[%emt 0:00:14] The board is on fire.} 27. Rc1 {[%emt 0:00:19]} Qb5+ {[%emt 0:01:49]} 28. Ka1 {[%emt 0:01:58]} Qa5 {[%emt 0:02:58]} 29. Rd7 {[%emt 0:02:07] Bf6 is the strong threat.} Kg6 $36 {[%emt 0:01:13][%mdl 2048] Prevents Bf6. Black has the initiative.} 30. Rd6+ {[%emt 0:02:26]} Kh7 {[%emt 0:01:41]} 31. Bf6 {[%emt 0:02:24][%mdl 8192]} (31. Rd7 $11 Kg6 32. Rd6+ Kf7 33. Rd7+ Kg6) 31... Qa3 $1 $19 {[%emt 0:00:25][%csl LRc1,LRd6][%cal Ra3c1]} 32. Rcd1 {[%emt 0:03:09]} Bxf6 {[%emt 0:00:12]} 33. Rd7+ {[%emt 0:00:31]} Kg6 {[%emt 0:00:12] Black mates.} 34. Kb1 {[%emt 0:00:21]} Qxc3 {[%emt 0:00:23][%csl Gf6][%cal Rc3b2]} 35. Rb7 {[%emt 0:00:32]} Qa1+ {[%emt 0:00:34]} 36. Kc2 {[%emt 0:00:06]} Qxa2+ {[%emt 0:00:09]} 37. Kc1 {[%emt 0:00:06]} Be5 {[%emt 0:00:41] Quite a comeback for Black.  Weighted Error Value: White=0.79/Black=0.37} 0-1

[Event "Mitropa Cup Women 2022"]
[Site "Corte"]
[Date "2022.05.08"]
[Round "9.8"]
[White "Schippke, Manon"]
[Black "Rozman, Monika"]
[Result "1-0"]
[ECO "B12"]
[WhiteElo "2072"]
[BlackElo "2117"]
[Annotator "TA"]
[PlyCount "83"]
[EventDate "2022.04.30"]
[EventType "team-tourn"]
[EventCountry "FRA"]
[SourceTitle "playchess.com"]
[Source "ChessBase"]
[SourceQuality "1"]
[WhiteTeam "France"]
[BlackTeam "Slovenia"]
[WhiteTeamCountry "FRA"]
[BlackTeamCountry "SLO"]
[TimeControl "40/5400+30:1800+30"]

{[%evp 12,83,53,38,58,35,41,38,115,115,99,73,59,54,83,81,105,97,110,93,100,74,179,205,204,76,93,106,77,0,336,250,250,257,243,242,251,243,229,233,243,235,553,538,499,516,666,614,631,527,575,572,609,585,564,477,505,509,512,509,477,466,456,429,429,421,504,429,519,429,677,658,1342,577]} 1. e4 {[%emt 0:00:05]} c6 {[%emt 0:00:04]} 2. d4 {[%emt 0:00:12]} d5 {[%emt 0:00:08]} 3. e5 {[%emt 0:00:03]} Bf5 {[%emt 0:00:05]} 4. h4 {[%emt 0:00:04]} h6 {[%emt 0:02:45]} 5. g4 {[%emt 0:00:10]} Bh7 {[%emt 0:00:06]} 6. e6 {[%emt 0:00:12]} fxe6 {[%emt 0:03:39]} 7. Bd3 {[%emt 0:00:26]} Be4 {[%emt 0:01:28] B12: Caro-Kann: Advance Variation.} 8. f3 {[%emt 0:01:37]} (8. Nf3 {feels hotter.} c5 9. Ne5 Nc6 10. Nxc6 bxc6 11. Bxe4 dxe4 12. dxc5 Qxd1+ 13. Kxd1 Nf6 14. Rg1) 8... Bxd3 {[%emt 0:03:21]} 9. Qxd3 {[%emt 0:00:05] Black must now prevent Ne2.} Qd6 {[%emt 0:02:16] [#]} (9... e5 $1 $14) 10. f4 $1 $16 {[%emt 0:10:03]} e5 {[%emt 0:20:26] [#]} 11. dxe5 $146 {[%emt 0:02:46]} ({Predecessor:} 11. fxe5 Qe6 12. Qe2 c5 13. c3 Nc6 14. Be3 h5 15. g5 Qf5 16. Nd2 e6 17. a3 Nge7 18. Rh2 {0-1 (25) Dahanayake,I (1771)-Licheli,L (2010) New Delhi 2019}) 11... Qe6 {[%emt 0:00:13]} 12. Qg3 $36 {[%emt 0:13:29][%mdl 2048] Hoping for f5. White has good play.} g6 {[%emt 0:06:30] Prevents f5.} 13. Nf3 {[%emt 0:01:47]} Qf7 {[%emt 0:06:27]} 14. Be3 {[%emt 0:03:29]} e6 {[%emt 0:01:18]} 15. Nbd2 {[%emt 0:00:39] White is more active.} Nd7 {[%emt 0:00:44]} 16. O-O-O {[%emt 0:01:02]} Bc5 {[%emt 0:01:23]} (16... c5 $16 {was necessary.}) 17. Bxc5 $18 {[%emt 0:00:48]} Nxc5 {[%emt 0:03:37]} 18. f5 (18. Nd4 $18 {has better winning chances.}) 18... gxf5 $16 {[%emt 0:00:30]} 19. gxf5 {[%emt 0:17:56]} exf5 {[%emt 0:06:43]} 20. e6 {[%emt 0:09:11]} (20. Nd4 $16) 20... Qh7 $2 {[%emt 0:01:29][%mdl 8192] Black is now going downhill.} (20... Nxe6 $11 {and Black is okay.} 21. Qe5 Qf6) 21. Nd4 {[%emt 0:02:06]} O-O-O {[%emt 0:02:47]} 22. Qa3 {[%emt 0:00:59][%csl LRa7,LRc5]} Na6 {[%emt 0:02:39] [#]} 23. Nxc6 {[%emt 0:00:21][%mdl 512]} bxc6 {[%emt 0:01:06]} 24. Qxa6+ {[%emt 0:00:04]} Qb7 {[%emt 0:00:17]} 25. Qa3 {[%emt 0:03:02]} Nf6 {[%emt 0:04:37]} 26. Rh3 {[%emt 0:01:23]} Rhe8 $2 {[%emt 0:04:27]} (26... Qc7 27. Rf3 Rde8) 27. Rb3 $18 {[%emt 0:03:22] White is clearly winning.} Qa8 {[%emt 0:00:20]} 28. Nf3 {Strongly threatening Nd4.} ({Not} 28. e7 Rd7 29. Re1 (29. Qa6+ Kc7 $18) 29... a5 $18) 28... Ne4 {[%emt 0:07:10]} 29. Nd4 {[%emt 0:05:15] Qa5 is the strong threat.} a5 {[%emt 0:08:12]} 30. e7 {[%emt 0:02:11]} Rd6 {[%emt 0:02:22]} 31. Nxf5 {[%emt 0:00:27]} Kd7 {[%emt 0:02:34]} 32. Nxd6 {[%emt 0:00:40]} Nxd6 {[%emt 0:00:02]} 33. Re1 {[%emt 0:02:31]} ({Less strong is} 33. Re3 Nc4 34. Qd3 Nxe3 35. Qxe3 Rxe7 36. Qxh6 Qa7 $16) 33... Qa7 {[%emt 0:04:11] And now ...Nc4 would win.} 34. Rf3 {[%emt 0:01:36] Threatens to win with Rf6.} Rxe7 {[%emt 0:00:54]} 35. Rxe7+ {[%emt 0:00:09]} Kxe7 {[%emt 0:00:04][%mdl 4096] Endgame KQR-KQN} 36. Re3+ {[%emt 0:01:23]} Kd7 {[%emt 0:01:37]} 37. Qd3 {[%emt 0:00:00] Prevents Nf5. White threatens Qh7+ and mate.} Kd8 {[%emt 0:00:59]} 38. Rg3 {[%emt 0:00:18]} Qf7 {[%emt 0:00:53]} 39. Qf3 Qe7 {[%emt 0:00:54] aiming for ...Qe1+.} 40. Qe3 {[%emt 0:02:02] Against Qe1+} Qf7 {[%emt 0:00:25]} (40... Qxe3+ $142 41. Rxe3 Kd7) 41. Qb6+ {[%emt 0:30:52]} Kd7 {[%emt 0:30:27] [#] ( -> ...Qf1+)} 42. Qa7+ {[%emt 0:00:14] Weighted Error Value: White=0.24 (precise) /Black=0.71} (42. Rg7 $142 $3 {[%mdl 512]}) 1-0